Workbook

Sheet SCHEDULE MJL-D1-1
A1: AMEREN MISSOURI
A2: ORIGINAL COST OF GAS PLANT
A3: ="BY FUNCTIONAL CLASSIFICATION "&'SCHEDULE MJL-D3'!A3:G3 -> BY FUNCTIONAL CLASSIFICATION FOR THE TWELVE MONTHS ENDED DECEMBER 31, 2020
A4: ($000)
E7: TOTALS | F7: PRO FORMA | G7: PRO FORMA
E8: PER | F8: ADJUSTMENTS | G8: GAS
A9: LINE | C9: FUNCTIONAL CLASSIFICATION | E9: BOOKS | F9: (1) | G9: TOTALS
C10: (A) | E10: (B) | F10: (C) | G10: (D)
A12: 1 | C12: INTANGIBLE PLANT | E12: 4563 | F12: =15050+1 -> 15051 | G12: =SUM(E12:F12) -> 19614
A14: =+A12+1 -> 2 | C14: PRODUCTION PLANT | E14: 0 | F14: 0 | G14: =SUM(E14:F14) -> 0
A16: =+A14+1 -> 3 | C16: TRANSMISSION PLANT | E16: 6739 | F16: 0 | G16: =SUM(E16:F16) -> 6739
A18: =+A16+1 -> 4 | C18: DISTRIBUTION PLANT | E18: 517727 | F18: 18743 | G18: =SUM(E18:F18) -> 536470
A20: =1+A18 -> 5 | C20: GENERAL PLANT | E20: =31886 -> 31886 | F20: 25433 | G20: =SUM(E20:F20) -> 57319
A22: =1+A20 -> 6 | C22: INCENTIVE COMPENSATION CAPITALIZED | E22: 0 | F22: -1639 | G22: =SUM(E22:F22) -> -1639
A24: =1+A22 -> 7 | C24: TOTAL PLANT IN SERVICE | E24: =SUM(E12:E22) -> 560915 | F24: =SUM(F12:F22) -> 57588 | G24: =SUM(G12:G22) -> 618503
A28: (1) Details of pro forma adjustments per SCHEDULE MJL-D1-2.

Sheet SCHEDULE MJL-D1-2
A1: =+'SCHEDULE MJL-D1-1'!A1:G1 -> AMEREN MISSOURI
A2: EXPLANATION OF PRO FORMA ADJUSTMENTS TO PLANT
A3: =+'SCHEDULE MJL-D1-1'!A3:G3 -> BY FUNCTIONAL CLASSIFICATION FOR THE TWELVE MONTHS ENDED DECEMBER 31, 2020
A4: ($000)
A6: Line | C6: Description | K6: Amount
A8: 1 | B8: -1 | C8: Pro Forma adjustment for forecasted plant additions through September 30, 2021. | K8: 30023
A10: =+A8+1 -> 2 | B10: -2 | C10: Reduce Plant-in-Service for AMI software investment. | K10: -4547
A12: =+A10+1 -> 3 | B12: -3 | C12: Allocate portions of plant in service for intangible assets and multi use general facilities which are applicable to gas operations. For convenience, such facilities are recorded as electric plant but are commonly used for both electric and gas. | K12: 33751
A13: =A12+1 -> 4
A16: =+A13+1 -> 5 | B16: -4 | C16: Reduce Plant-in-Service for disallowed capital incentive compensation. | K16: -1639
A19: =1+A16 -> 6 | C19: Total Pro Forma Adjustments | K19: =SUM(K8:K16) -> 57588

Sheet SCHEDULE MJL-D2-1
A1: AMEREN MISSOURI
A2: TOTAL GAS RESERVES FOR DEPRECIATION AND AMORTIZATION
A3: =+'SCHEDULE MJL-D1-1'!A3:G3 -> BY FUNCTIONAL CLASSIFICATION FOR THE TWELVE MONTHS ENDED DECEMBER 31, 2020
A4: ($000)
E7: TOTALS | F7: PRO FORMA | G7: PRO FORMA
E8: PER | F8: ADJUSTMENTS | G8: GAS
A9: LINE | C9: FUNCTIONAL CLASSIFICATION | E9: BOOKS | F9: (1) | G9: TOTALS
C10: (A) | E10: (B) | F10: (C) | G10: (D)
A12: 1 | C12: INTANGIBLE PLANT | E12: 1831 | F12: 8184 | G12: =E12+F12 -> 10015
A14: =1+A12 -> 2 | C14: PRODUCTION PLANT | E14: -779 | F14: 0 | G14: -779
A16: =1+A14 -> 3 | C16: TRANSMISSION PLANT | E16: 3025 | F16: 80 | G16: 3105
A18: =1+A16 -> 4 | C18: DISTRIBUTION PLANT | E18: 193478 | F18: 8585 | G18: 202063
A20: =1+A18 -> 5 | C20: GENERAL PLANT | E20: 8759 | F20: 5611 | G20: 14370
A22: =1+A20 -> 6 | C22: INCENTIVE COMPENSATION CAPITALIZED | E22: 0 | F22: -455 | G22: =E22+F22 -> -455
A24: =1+A22 -> 7 | C24: TOTAL DEPRC. & AMORT RESERVE | E24: =E12+E14+E16+E18+E20+E22 -> 206314 | F24: =F12+F14+F16+F18+F20+F22 -> 22005 | G24: =G12+G14+G16+G18+G20+G22 -> 228319
A26: (1) Details of pro forma adjustments per SCHEDULE MJL-D2-2.

Sheet SCHEDULE MJL-D2-2
A1: =+'SCHEDULE MJL-D1-1'!A1:G1 -> AMEREN MISSOURI
A2: EXPLANATION OF PRO FORMA ADJUSTMENTS TO ACCUMULATED RESERVES
A3: =+'SCHEDULE MJL-D1-1'!A3:G3 -> BY FUNCTIONAL CLASSIFICATION FOR THE TWELVE MONTHS ENDED DECEMBER 31, 2020
A4: ($000)
A7: Line | C7: Description | K7: Amount
A9: 1 | B9: -1 | C9: Reserve Balance at December 31, 2020 adjusted to reflect Reserve Balance at September 30, 2021. | K9: 10478
A11: =+A9+1 -> 2 | B11: -2 | C11: Reduce Plant-in-Service for AMI software investment. | K11: -1124
A13: =+A11+1 -> 3 | B13: -3 | C13: Adjustment to depreciation reserve for the additions to plant in service for the true-up period of January 1, 2021 through September 30, 2021. | K13: 642
A14: =A13+1 -> 4
A17: =+A14+1 -> 5 | B17: -4 | C17: =+'SCHEDULE MJL-D1-2'!C12 -> Allocate portions of plant in service for intangible assets and multi use general facilities which are applicable to gas operations. For convenience, such facilities are recorded as electric plant but are commonly used for both electric and gas. | K17: 12465
A18: =A17+1 -> 6
A21: =+A18+1 -> 7 | B21: -5 | C21: Reserve Balance adjustment for disallowed Incentive Compensation capitalized. | K21: -455
A24: =A21+1 -> 8 | C24: Total Pro Forma Adjustments | K24: =SUM(K9:K21) -> 22006

Sheet SCHEDULE MJL-D3
A1: AMEREN MISSOURI
A2: AVERAGE FUEL AND MATERIALS & SUPPLIES INVENTORIES
A3: FOR THE TWELVE MONTHS ENDED DECEMBER 31, 2020
A4: ($000)
D6: TOTALS | F6: PRO FORMA
D7: PER | E7: PRO FORMA | F7: GAS
A8: LINE | C8: DESCRIPTION | D8: BOOKS | E8: ADJUSTMENTS | F8: TOTALS
C9: (A) | D9: (B) | E9: (C) | F9: (D)
A12: 1 | C12: GENERAL MATERIALS AND SUPPLIES | D12: 2203 | E12: 0 | F12: =D12+E12 -> 2203
A14: =1+A12 -> 2 | C14: GAS STORED UNDERGROUND | D14: 4297 | E14: 0 | F14: =D14+E14 -> 4297
A16: =1+A14 -> 3 | C16: TOTAL | D16: =D12+D14 -> 6500 | E16: =E12+E14 -> 0 | F16: =F12+F14 -> 6500

Sheet SCHEDULE MJL-D4
B1: AMEREN MISSOURI
B2: AVERAGE PREPAYMENTS
B3: =+'SCHEDULE MJL-D3'!A3 -> FOR THE TWELVE MONTHS ENDED DECEMBER 31, 2020
B4: ($000)
E6: TOTALS | G6: PRO FORMA
E7: PER | F7: PRO FORMA | G7: GAS
B8: LINE | D8: DESCRIPTION | E8: BOOKS(1) | F8: ADJUSTMENTS | G8: TOTALS
D9: (A) | E9: (B) | F9: (C) | G9: (D)
B11: 1 | D11: RENTS (3) | E11: 39 | F11: -38 | G11: =E11+F11 -> 1
B12: =1+B11 -> 2 | D12: INSURANCE - DIRECT (2) | E12: 9686 | F12: -9066 | G12: 620
B13: =B12+1 -> 3 | D13: REG. COMMISSION ASSESSMENTS (3) | E13: 0 | F13: 0 | G13: 0
B14: =B13+1 -> 4 | D14: COAL CAR LEASE (2) | E14: 0 | F14: 0 | G14: 0
B15: 5 | D15: M/A COMM RADIO SYS SRVC AGREEMENT (3) | E15: 0 | F15: 0 | G15: 0
B16: 6 | D16: MEDICAL AND DENTAL VEBA (3) | E16: 4372 | F16: -4267 | G16: 105
B17: 7 | D17: IMAGING SOFTWARE (ELEC ONLY) | E17: 82 | F17: -82 | G17: =E17+F17 -> 0
B18: 8 | D18: FUELWORKS SOFTWARE (ELEC ONLY) | E18: 0 | F18: 0 | G18: 0
B19: 9 | D19: MICROSOFT ENTERPRISE APPLICATIONS (3) | E19: 0 | F19: 0 | G19: 0
B20: 10 | D20: ARBOR NEWSTAR SERVICE FEE (3) | E20: 0 | F20: 0 | G20: =E20+F20 -> 0
B21: 11 | D21: OPTIV GIGAMON (3) | E21: 5 | F21: -5 | G21: 0
B22: 12 | D22: CAROUSEL (AVAYA) MAINTENANCE (3) | E22: 0 | F22: 0 | G22: 0
B23: 13 | D23: ENERGY EFFICIENCY PROGRAM VENDORS (2) | E23: 0 | F23: 0 | G23: 0
B24: 14 | D24: NSR & OPACITY LITIGATION (2) | E24: 0 | F24: 0 | G24: 0
B25: 15 | D25: CRM SALESFORCE SUBSCRIPTION (3) | E25: 36 | F25: -35 | G25: 1
B26: 16 | D26: KANSAS CITY POWER & LIGHT (ELEC ONLY) | E26: 3111 | F26: -3111 | G26: 0
B27: 17 | D27: PALO ALTO ENTERPRISE (3) | E27: 12 | F27: -12 | G27: 0
B28: 18 | D28: LOW INCOME WEATHERIZATION - DIRECT (2) | E28: 133 | F28: -104 | G28: 29
B30: =1+B28 -> 19 | D30: TOTAL AVERAGE PREPAYMENTS | E30: =SUM(E11:E28) -> 17476 | F30: =SUM(F11:F28) -> -16720 | G30: =SUM(G11:G28) -> 756
B32: =1+B30 -> 20 | C32: -1 | D32: Reflects 13 month average
B33: =1+B32 -> 21 | C33: -2 | D33: Directly assigned to electric or gas.
B34: =1+B33 -> 22 | C34: -3 | D34: Allocated to gas based on operating expenses excluding purchased power, fuel adjustment clause and purchased gas.
C38: PRO FORMA ADJUSTMENT
B40: =B34+1 -> 23 | C40: -1 | D40: Eliminate portions of prepayments which are applicable to electric operations. Allocated between | G40: =+F30 -> -16720
B41: =1+B40 -> 24 | D41: electric and gas operations based on operating expenses excluding purchased power, fuel adjustment clause
B42: =1+B41 -> 25 | D42: and purchased gas.

Sheet SCHEDULE MJL-D5
A1: AMEREN MISSOURI
A2: TOTAL GAS CASH WORKING CAPITAL
A3: =+'SCHEDULE MJL-D3'!A3 -> FOR THE TWELVE MONTHS ENDED DECEMBER 31, 2020
A4: ($000)
J6: CASH WORKING
E7: REVENUE | F7: EXPENSE | G7: NET | I7: TEST YEAR | J7: CAPITAL
A8: LINE | C8: DESCRIPTION | E8: LAG | F8: LEAD | G8: LEAD/LAG | H8: FACTOR | I8: EXPENSE | J8: REQUIREMENT
C9: (A) | E9: (B) | F9: (C) | G9: (D) | H9: (E) | I9: (F) | J9: (G)
A11: 1 | C11: PAYROLL & WITHHOLDINGS | E11: 39.5 | F11: -10.15 | G11: =+E11+F11 -> 29.35 | H11: =ROUND(+G11/365,6) -> 0.080411 | I11: 16973 | J11: =ROUND(+H11*I11,0) -> 1365
A12: =1+A11 -> 2 | C12: PENSIONS AND BENEFITS | E12: 39.5 | F12: -18.41 | G12: =+E12+F12 -> 21.09 | H12: =ROUND(+G12/365,6) -> 0.057781 | I12: 1925 | J12: =ROUND(+H12*I12,0) -> 111
A13: 3 | C13: FUEL | E13: 39.5 | F13: -35.02 | G13: =+E13+F13 -> 4.48 | H13: =ROUND(+G13/365,6) -> 0.012274 | I13: 42944 | J13: =ROUND(+H13*I13,0) -> 527
A14: 4 | C14: INCENTIVE COMPENSATION | E14: 39.5 | F14: -250.29 | G14: =+E14+F14 -> -210.79 | H14: =ROUND(+G14/365,6) -> -0.577507 | I14: 1570 | J14: =ROUND(+H14*I14,0) -> -907
A15: 5 | C15: UNCOLLECTIBLE ACCOUNTS | E15: 39.5 | F15: -39.5 | G15: =+E15+F15 -> 0 | H15: =ROUND(+G15/365,6) -> 0 | I15: 646 | J15: =ROUND(+H15*I15,0) -> 0
A16: 6 | C16: OTHER OPERATING EXPENSES | E16: 39.5 | F16: -43.85 | G16: -4.35 | H16: -0.011918 | I16: 15014 | J16: =ROUND(+H16*I16,0) -> -179
A17: 7
A18: 8 | C18: TOTAL O&M EXPENSES | I18: 35892
A20: =1+A18 -> 9 | C20: TOTAL CASH WORKING CAPITAL REQUIREMENT | J20: =SUM(J11:J16) -> 917
A22: =1+A20 -> 10 | C22: FICA - EMPLOYER'S PORTION | E22: 39.5 | F22: -9.38 | G22: =+E22+F22 -> 30.12 | H22: =ROUND(+G22/365,6) -> 0.082521 | I22: 1110 | J22: =ROUND(+H22*I22,0) -> 92
A23: =1+A22 -> 11 | C23: FEDERAL UNEMPLOYMENT TAXES | E23: 39.5 | F23: -9.38 | G23: =+E23+F23 -> 30.12 | H23: =ROUND(+G23/365,6) -> 0.082521 | I23: 8 | J23: 1
A24: =1+A23 -> 12 | C24: PROPERTY TAXES | E24: 39.5 | F24: -183 | G24: -143.5 | H24: -0.393151 | I24: 8126 | J24: -3195
A25: 13 | C25: SALES TAXES | E25: 39.5 | F25: -9.31 | G25: 30.19 | H25: 0.082712 | I25: 2857 | J25: 236
A26: 14 | C26: SELF PROCURED INSURANCE TAX | E26: 39.5 | F26: -241.5 | G26: -202 | H26: -0.553425 | I26: 10 | J26: -6
A27: 15 | C27: GROSS RECEIPTS TAXES | E27: 24.29 | F27: -26.14 | G27: -1.85 | H27: -0.005068 | I27: 5812 | J27: -29
A29: =1+A27 -> 16 | C29: TOTAL TAXES AND OTHER EXPENSES | I29: =SUM(I22:I27) -> 17923
A31: =1+A29 -> 17 | C31: NET CUSTOMER SUPPLIED FUNDS | J31: =SUM(J22:J27) -> -2901
A33: =1+A31 -> 18 | C33: NET CASH WORKING CAPITAL REQUIREMENT | J33: =J20+J31 -> -1984

Sheet SCHEDULE MJL-D6
A1: AMEREN MISSOURI
A2: TOTAL GAS FEDERAL AND STATE INCOME TAX AND CITY EARNINGS TAX CASH REQUIREMENTS
A3: AND INTEREST EXPENSE CASH REQUIREMENT
A4: ='SCHEDULE MJL-D5'!A3 -> FOR THE TWELVE MONTHS ENDED DECEMBER 31, 2020
A5: ($000)
J8: CASH WORKING
E9: REVENUE | F9: EXPENSE | G9: NET | I9: TEST YEAR | J9: CAPITAL
A10: LINE | C10: DESCRIPTION | E10: LAG | F10: LEAD (1) | G10: LEAD/LAG | H10: FACTOR | I10: EXPENSE | J10: REQUIREMENT
C11: (A) | E11: (B) | F11: (C) | G11: (D) | H11: (E) | I11: (F) | J11: (G)
A14: 1 | C14: FEDERAL INCOME TAX CASH REQUIREMENT | E14: 39.5 | F14: -38 | G14: =+E14+F14 -> 1.5 | H14: =ROUND(+G14/365,6) -> 0.00411 | I14: 3942 | J14: =ROUND(+H14*I14,0) -> 16
A17: =1+A14 -> 2 | C17: STATE INCOME TAX CASH REQUIREMENT | E17: 39.5 | F17: -38 | G17: =+E17+F17 -> 1.5 | H17: =ROUND(+G17/365,6) -> 0.00411 | I17: 700 | J17: =ROUND(+H17*I17,0) -> 3
A20: =1+A17 -> 3 | C20: CITY EARNINGS TAX CASH REQUIREMENT | E20: 39.5 | F20: -274.5 | G20: =+E20+F20 -> -235 | H20: =ROUND(+G20/365,6) -> -0.643836 | I20: 20 | J20: =ROUND(+H20*I20,0) -> -13
A23: =1+A20 -> 4 | C23: INTEREST EXPENSE CASH REQUIREMENT | E23: 39.5 | F23: -91.37 | G23: =+E23+F23 -> -51.87 | H23: =ROUND(+G23/365,6) -> -0.14211 | I23: 5663 | J23: =ROUND(+H23*I23,0) -> -805

Sheet SCHEDULE MJL-D7
A1: AMEREN MISSOURI
A2: TOTAL GAS AVERAGE CUSTOMER ADVANCES FOR CONSTRUCTION AND
A3: AVERAGE CUSTOMER DEPOSITS
A4: ='SCHEDULE MJL-D4'!B3 -> FOR THE TWELVE MONTHS ENDED DECEMBER 31, 2020
A5: ($000)
A8: LINE | C8: DESCRIPTION | E8: TOTAL GAS
C9: (A) | E9: (B)
A13: =1 -> 1 | C13: AVERAGE CUSTOMER ADVANCES FOR CONSTRUCTION | E13: -391
A16: =1+A13 -> 2 | C16: AVERAGE CUSTOMER DEPOSITS | E16: -885

Sheet SCHEDULE MJL-D8
A1: AMEREN MISSOURI
A2: OTHER REGULATORY ASSETS
A3: AND REGULATORY LIABILITIES
A4: =+'SCHEDULE MJL-D9'!A3:H3 -> FOR THE TWELVE MONTHS ENDED DECEMBER 31, 2020
A5: ($000)
H9: TOTAL
A10: LINE | C10: DESCRIPTION | H10: GAS (1)
C11: (A) | H11: (B)
A15: =1 -> 1 | C15: PENSIONS | H15: -579
A18: =1+A15 -> 2 | C18: OTHER POST-EMPLOYMENT BENEFITS | H18: -958
A22: =1+A18 -> 3 | C22: (1) A positive balance is a Regulatory Asset and a negative balance is a
A23: =1+A22 -> 4 | C23: Regulatory Liability.

Sheet SCHEDULE MJL-D9
A1: AMEREN MISSOURI
A2: ACCUMULATED DEFERRED INCOME TAXES
A3: =+'SCHEDULE MJL-D3'!A3:G3 -> FOR THE TWELVE MONTHS ENDED DECEMBER 31, 2020
A4: ($000)
F6: TOTAL | H6: PRO FORMA
F7: GAS | G7: PRO FORMA | H7: GAS
A8: LINE | C8: DESCRIPTION | F8: PER BOOKS | G8: ADJUSTMENTS | H8: TOTAL
C9: (A) | F9: (B) | G9: (C) | H9: (D)
A11: 1 | C11: ACCOUNT 190 | F11: 2022 | G11: -185 | H11: =+F11+G11 -> 1837
A13: =1+A11 -> 2 | C13: ACCOUNT 282 | F13: -80210 | G13: -2716 | H13: =+F13+G13 -> -82926
A15: =1+A13 -> 3 | C15: ACCOUNT 283 | F15: -294 | G15: 0 | H15: =+F15+G15 -> -294
A17: =1+A15 -> 4 | C17: TOTAL ACCUMULATED DEFERRED INCOME TAXES | F17: =SUM(F11:F16) -> -78482 | G17: =SUM(G11:G16) -> -2901 | H17: =SUM(H11:H16) -> -81383

Sheet SCHEDULE MJL-D10
A1: AMEREN MISSOURI
A2: TOTAL GAS PER BOOK AND PRO FORMA OPERATING REVENUES
A3: ='SCHEDULE MJL-D5'!A3 -> FOR THE TWELVE MONTHS ENDED DECEMBER 31, 2020
A4: ($000)
F8: ADJUSTED
D9: TOTAL | E9: PRO FORMA | F9: TOTAL
A10: LINE | C10: DESCRIPTION | D10: GAS | E10: ADJUSTMENTS | F10: GAS
C11: (A) | D11: (B) | E11: (C) | F11: (D)
C13: OPERATING REVENUES
A14: 1 | C14: RETAIL REVENUES | D14: 108814 | E14: =-47206+1 -> -47205 | F14: =D14+E14 -> 61609
A15: =1+A14 -> 2 | C15: TRANSPORTATION | D15: 13442 | E15: 191 | F15: =D15+E15 -> 13633
A16: 3 | C16: PROVISION FOR RATE REFUNDS | D16: 769 | E16: =-768+1 -> -767 | F16: =D16+E16 -> 2
A17: =1+A16 -> 4 | C17: OTHER GAS REVENUES | D17: 1561 | E17: 260 | F17: =D17+E17 -> 1821
A19: =+A17+1 -> 5 | C19: TOTAL REVENUES PER BOOKS | D19: =SUM(D14:D18) -> 124586 | E19: -47521 | F19: =SUM(F14:F18) -> 77065
C23: PRO FORMA ADJUSTMENTS:
A24: =1+A19 -> 6 | B24: -1 | C24: REMOVE ADD ON REVENUE TAX | D24: =-5764 -> -5764
A25: =1+A24 -> 7 | B25: -2 | C25: ADJUSTMENT TO REFLECT NORMAL WEATHER | D25: 2732
A26: 8 | B26: -3 | C26: ELIMINATE PGA REVENUES | D26: -42475
A27: =1+A26 -> 9 | B27: -4 | C27: ADJUST FOR BILLING UNITS | D27: -2013
A28: 10 | B28: -5 | C28: ELIMINATE UNBILLED REVENUE | D28: -1385
A29: 11 | B29: -6 | C29: SOFTWARE RENTAL ADJUSTMENT | D29: 161
A30: 12 | B30: -7 | C30: REMOVE BOA LEASE REVENUES | D30: -72
A31: 13 | B31: -8 | C31: GROWTH ADJUSTMENT | D31: 585
A32: 14 | B32: -9 | C32: DAYS & LEAP YEAR ADJUSTMENT | D32: =-151 -> -151
A33: 15 | B33: -10 | C33: COVID ADJUSTMENT | D33: 689
A34: 16 | B34: -11 | C34: LATE FEE REVENUE NORMALIZATION | D34: 172
A36: =1+A34 -> 17 | C36: TOTAL PRO FORMA ADJUSTMENTS | E36: =SUM(D24:D34) -> -47521

Sheet SCHEDULE MJL-D11-1
F1: #1 | G1: #2 | H1: #3 | I1: #4 | J1: #5 | K1: #6 | L1: #7 | M1: #8 | R1: #9 | S1: #10 | T1: #11 | U1: #12 | V1: #13 | W1: #14 | X1: #15 | Y1: #16 | Z1: #17 | AA1: #18 | AF1: #19 | AG1: #20 | AH1: #21 | AI1: #22 | AJ1: #23 | AK1: #24 | AL1: #25 | AM1: #26
C2: Title included in Page header for printing purposes. | H2: LONG TERM | R2: PRO FORMA | U2: NON- | V2: REBASE | W2: AMORTIZE | X2: ANNUALIZE | Z2: REMOVE
E3: TOTAL | G3: INCENTIVE | H3: INCENTIVE | I3: BAD DEBT | K3: ELIMINATE | L3: ADD INTEREST | R3: MEDICAL & | S3: NORMALIZE | T3: INCREMENTAL | U3: QUALIFIED | V3: PENSION | W3: PENSION | X3: DEPRECIATION | Y3: BOA | Z3: ELECTRIC COSTS | AF3: ALLOCATION | AH3: REMOVE | AI3: BOARD OF | AJ3: SOFTWARE | AK3: EV | AL3: CUSTOMER | AN3: TOTAL | AO3: PRO FORMA
E4: PER | F4: LABOR | G4: COMPENSATN | H4: COMPENSATN | I4: EXPENSE | J4: STAFFING | K4: PURCHASED | L4: ON CUSTOMER | M4: INSURANCE | R4: BENEFIT | S4: AAO COSTS/ | T4: JANITORIAL | U4: PENSION | V4: AND OPEB | W4: AND OPEB | X4: AND RATE | Y4: RENTAL | Z4: ALLOCATED | AA4: DEPR TO O&M | AF4: FACTOR | AG4: COLI | AH4: ALCOHOL | AI4: DIRECTORS | AJ4: RENTAL | AK4: INCENTIVE | AL4: CONVENIENCE | AM4: MPSC | AN4: PRO FORMA | AO4: GAS
C5: LINE | D5: FUNCTIONAL CLASSIFICATION | E5: BOOKS | F5: ADJUSTMENT | G5: ADJUSTMENT | H5: ADJUSTMENT | I5: TO WRITEOFFS | J5: ADJUSTMENT | K5: GAS EXPENSE | L5: DEPOSITS | M5: ADJUST. | P5: LINE | Q5: FUNCTIONAL CLASSIFICATION | R5: ADJUST. | S5: SAVINGS | T5: COSTS | U5: ADJUST. | V5: TRACKER | W5: TRACKER | X5: CASE EXPENSE | Y5: EXPENSE | Z5: TO GAS | AA5: ADJUSTMENT | AD5: LINE | AE5: FUNCTIONAL CLASSIFICATION | AF5: ADJUSTMENT | AG5: NORMALIZATION | AH5: PURCHAES | AI5: EXPENSE | AJ5: EXPENSE | AK5: ADJUSTMENT | AL5: FEES | AM5: ASSESSMENT | AN5: ADJUSTMENT | AO5: TOTALS
D6: (A) | E6: (B) | F6: (C) | G6: (D) | H6: (E) | I6: (F) | J6: (G) | K6: (H) | L6: (I) | M6: (J) | Q6: (A) | R6: (B) | S6: (C) | T6: (D) | U6: (E) | V6: (F) | W6: (G) | X6: (H) | Y6: (I) | Z6: (J) | AA6: (J) | AE6: (A) | AF6: (B) | AG6: (C) | AH6: (D) | AI6: (E) | AJ6: (F) | AK6: (G) | AL6: (H) | AM6: (I) | AN6: (J) | AO6: (J)
C9: =1 -> 1 | D9: PRODUCTION: | E9: 43713 | F9: 10 | G9: -11 | H9: -13 | I9: 0 | J9: 0 | K9: -42944 | L9: 0 | M9: 0 | P9: =1 -> 1 | Q9: PRODUCTION: | R9: 0 | S9: 0 | T9: 0 | U9: 0 | V9: 0 | W9: 0 | X9: 0 | Y9: 0 | Z9: 0 | AA9: 0 | AD9: =1 -> 1 | AE9: PRODUCTION: | AF9: 0 | AG9: 0 | AH9: 0 | AI9: 0 | AJ9: 0 | AK9: 0 | AL9: 0 | AM9: 0 | AN9: =SUM(F9:M9,R9:AA9,AF9:AM9) -> -42958 | AO9: =+E9+AN9 -> 755
C11: =1+C9 -> 2 | D11: TOTAL TRANSMISSION EXPENSES: | E11: 8 | F11: 0 | G11: 0 | H11: 0 | I11: 0 | J11: 0 | K11: 0 | L11: 0 | M11: 0 | P11: =1+P9 -> 2 | Q11: TOTAL TRANSMISSION EXPENSES: | R11: 0 | S11: 0 | T11: 0 | U11: 0 | V11: 0 | W11: 0 | X11: 0 | Y11: 0 | Z11: 0 | AA11: 0 | AD11: =1+AD9 -> 2 | AE11: TOTAL TRANSMISSION EXPENSES: | AF11: 0 | AG11: 0 | AH11: 0 | AI11: 0 | AJ11: 0 | AK11: 0 | AL11: 0 | AM11: 0 | AN11: =SUM(F11:M11,R11:AA11,AF11:AM11) -> 0 | AO11: =+E11+AN11 -> 8
C13: =1+C11 -> 3 | D13: DISTRIBUTION EXPENSES: | E13: 14480 | F13: 183 | G13: -134 | H13: -40 | I13: 0 | J13: 0 | K13: 0 | L13: 0 | M13: 0 | P13: =1+P11 -> 3 | Q13: DISTRIBUTION EXPENSES: | R13: 0 | S13: -246 | T13: 0 | U13: 0 | V13: 0 | W13: 0 | X13: 0 | Y13: 0 | Z13: 0 | AA13: -46 | AD13: =1+AD11 -> 3 | AE13: DISTRIBUTION EXPENSES: | AF13: 1 | AG13: 0 | AH13: 0 | AI13: 0 | AJ13: 0 | AK13: 0 | AL13: 0 | AM13: 0 | AN13: =SUM(F13:M13,R13:AA13,AF13:AM13) -> -282 | AO13: =+E13+AN13 -> 14198
C15: =1+C13 -> 4 | D15: CUSTOMER ACCOUNTING EXPENSES: | E15: 5680 | F15: 64 | G15: -45 | H15: -10 | I15: -104 | J15: 0 | K15: 0 | L15: 38 | M15: 0 | P15: =1+P13 -> 4 | Q15: CUSTOMER ACCOUNTING EXPENSES: | R15: 0 | S15: -7 | T15: 0 | U15: 0 | V15: 0 | W15: 0 | X15: 0 | Y15: 0 | Z15: 0 | AA15: 0 | AD15: =1+AD13 -> 4 | AE15: CUSTOMER ACCOUNTING EXPENSES: | AF15: 0 | AG15: 0 | AH15: 0 | AI15: 0 | AJ15: 0 | AK15: 0 | AL15: 503 | AM15: 0 | AN15: =SUM(F15:M15,R15:AA15,AF15:AM15) -> 439 | AO15: =+E15+AN15 -> 6119
C17: =1+C15 -> 5 | D17: CUSTOMER SERV. & INFO. EXPENSES: | E17: 805 | F17: 0 | G17: 0 | H17: -1 | I17: 0 | J17: 0 | K17: 0 | L17: 0 | M17: 0 | P17: =1+P15 -> 5 | Q17: CUSTOMER SERV. & INFO. EXPENSES: | R17: 0 | S17: 0 | T17: 0 | U17: 0 | V17: 0 | W17: 0 | X17: 0 | Y17: 0 | Z17: 0 | AA17: 0 | AD17: =1+AD15 -> 5 | AE17: CUSTOMER SERV. & INFO. EXPENSES: | AF17: 0 | AG17: 0 | AH17: 0 | AI17: 0 | AJ17: 0 | AK17: 0 | AL17: 0 | AM17: 0 | AN17: =SUM(F17:M17,R17:AA17,AF17:AM17) -> -1 | AO17: =+E17+AN17 -> 804
C19: =1+C17 -> 6 | D19: SALES EXPENSES: | E19: 54 | F19: 1 | G19: -1 | H19: 0 | I19: 0 | J19: 0 | K19: 0 | L19: 0 | M19: 0 | P19: =1+P17 -> 6 | Q19: SALES EXPENSES: | R19: 0 | S19: 0 | T19: 0 | U19: 0 | V19: 0 | W19: 0 | X19: 0 | Y19: 0 | Z19: 0 | AA19: 0 | AD19: =1+AD17 -> 6 | AE19: SALES EXPENSES: | AF19: 0 | AG19: 0 | AH19: 0 | AI19: 0 | AJ19: 0 | AK19: 0 | AL19: 0 | AM19: 0 | AN19: =SUM(F19:M19,R19:AA19,AF19:AM19) -> 0 | AO19: =+E19+AN19 -> 54
C21: =1+C19 -> 7 | D21: ADMINISTRATIVE & GENERAL EXPENSES: | E21: 13156 | F21: 89 | G21: -91 | H21: -317 | I21: 0 | J21: 581 | K21: 0 | L21: 0 | M21: 418 | P21: =1+P19 -> 7 | Q21: ADMINISTRATIVE & GENERAL EXPENSES: | R21: 231 | S21: 117 | T21: 11 | U21: 19 | V21: 105 | W21: 133 | X21: 213 | Y21: -110 | Z21: -14 | AA21: 0 | AD21: =1+AD19 -> 7 | AE21: ADMINISTRATIVE & GENERAL EXPENSES: | AF21: 39 | AG21: -340 | AH21: -1 | AI21: -17 | AJ21: -20 | AK21: -1 | AL21: 0 | AM21: -11 | AN21: =SUM(F21:M21,R21:AA21,AF21:AM21) -> 1034 | AO21: =+E21+AN21 -> 14190
C23: =1+C21 -> 8 | D23: TOTAL OPERATIONS & MAINTENANCE EXPENSES | E23: =SUM(E9:E21) -> 77896 | F23: =SUM(F9:F21) -> 347 | G23: -282 | H23: -381 | I23: =SUM(I9:I21) -> -104 | J23: 581 | K23: =SUM(K9:K21) -> -42944 | L23: 38 | M23: 418 | P23: =1+P21 -> 8 | Q23: TOTAL OPERATIONS & MAINTENANCE EXPENSES | R23: =SUM(R9:R21) -> 231 | S23: =SUM(S9:S21) -> -136 | T23: 11 | U23: 19 | V23: 105 | W23: 133 | X23: 213 | Y23: =SUM(Y9:Y21) -> -110 | Z23: =SUM(Z9:Z21) -> -14 | AA23: -46 | AD23: =1+AD21 -> 8 | AE23: TOTAL OPERATIONS & MAINTENANCE EXPENSES | AF23: =SUM(AF9:AF21) -> 40 | AG23: =SUM(AG9:AG21) -> -340 | AH23: =SUM(AH9:AH21) -> -1 | AI23: -17 | AJ23: -20 | AK23: -1 | AL23: 503 | AM23: -11 | AN23: =SUM(AN9:AN21) -> -41768 | AO23: =SUM(AO9:AO21) -> 36128
C25: =1+C23 -> 9 | D25: NOTE: See SCHEDULE MJL-D11-4 for explanation of the pro forma adjustments. | P25: =1+P23 -> 9 | Q25: NOTE: See SCHEDULE MJL-D11-4 for explanation of the pro forma adjustments. | AD25: =1+AD23 -> 9 | AE25: NOTE: See SCHEDULE MJL-D11-4 for explanation of the pro forma adjustments.
A45: SCHEDULE MJL-D11-1 | N45: SCHEDULE MJL-D11-2 | AB45: SCHEDULE MJL-D11-3

Sheet SCHEDULE MJL-D11-4
A1: AMEREN MISSOURI
A2: GAS OPERATING AND MAINTENANCE EXPENSE
A3: PRO FORMA ADJUSTMENTS
A4: ='SCHEDULE MJL-D5'!A3 -> FOR THE TWELVE MONTHS ENDED DECEMBER 31, 2020
A5: ($000)
B6: PRO FORMA | L6: TOTAL
A7: LINE | B7: ITEM NO. | C7: DESCRIPTION | L7: AMOUNT
B8: (A) | C8: (B) | L8: (C)
A10: 1 | B10: -1 | C10: Increased labor expense from annualizing the average 1.83% wage increase for management employees effective January 1, 2021, and the 2.50% wage increase for the Company's union employees effective Jan 1, 2021 per the labor contracts. | L10: ='SCHEDULE MJL-D11-1'!F23 -> 347
A11: =1+A10 -> 2
A12: =1+A11 -> 3
A14: =1+A12 -> 4 | B14: -2 | C14: Decrease the incentive compensation expense for the incentive compensation applicable to AMS and Ameren Missouri officers related to earnings. | L14: ='SCHEDULE MJL-D11-1'!G23 -> -282
A15: =1+A14 -> 5
A17: =1+A15 -> 6 | B17: -3 | C17: Eliminate the long term incentive compensation related to earnings. | L17: ='SCHEDULE MJL-D11-1'!H23 -> -381
A19: =1+A17 -> 7 | B19: -4 | C19: To adjust bad debt expense to writeoffs. | L19: ='SCHEDULE MJL-D11-1'!I23 -> -104
A21: =1+A19 -> 8 | B21: -5 | C21: Management and Contract salaries and average benefits annualized for increased headcount (232 employees) | L21: ='SCHEDULE MJL-D11-1'!J23 -> 581
A24: =1+A21 -> 9 | B24: -6 | C24: Eliminate cost of purchased gas and other related costs and expenses that are collected through the PGA | L24: =+'SCHEDULE MJL-D11-1'!K23 -> -42944
A26: =1+A24 -> 10 | B26: -7 | C26: Increase in customer accounting expenses to reflect interest expense at 4.25% on the average customer deposit | L26: ='SCHEDULE MJL-D11-1'!L23 -> 38
A27: =1+A26 -> 11 | C27: balance.
A29: =1+A27 -> 12 | B29: -8 | C29: Annualize insurance expense based upon current insurance premiums. | L29: ='SCHEDULE MJL-D11-1'!M23 -> 418
A31: =1+A29 -> 13 | B31: -9 | C31: Decrease administrative and general expenses to reflect annualized year 2021 in the other employee benefit expenses (excludes Major Medical which is covered in AAO adjustment #10. | L31: ='SCHEDULE MJL-D11-1'!R23 -> 231
A32: =1+A31 -> 14
A34: =1+A32 -> 15 | B34: -10 | C34: To adjust costs related to COVID-19 pandemic to normal levels. | L34: ='SCHEDULE MJL-D11-1'!S23 -> -136
A36: =1+A34 -> 16 | B36: -11 | C36: To normalize janitorial costs for new cleaning procedures subsequent to a global pandemic. | L36: ='SCHEDULE MJL-D11-1'!T23 -> 11
A38: =1+A36 -> 17 | B38: -12 | C38: Increase non-qualified pension expense to reflect current level of expense. | L38: ='SCHEDULE MJL-D11-1'!U23 -> 19
A40: =1+A38 -> 18 | B40: -13 | C40: Rebase Pension and OPEB Tracker to year 2021 level. | L40: ='SCHEDULE MJL-D11-1'!V23 -> 105
A42: =1+A40 -> 19 | B42: -14 | C42: Update the amortization of the net regulatory liabilities for Pension and OPEB Tracker. | L42: ='SCHEDULE MJL-D11-1'!W23 -> 133
A44: =1+A42 -> 20 | B44: -15 | C44: To annualize rate case expense over a 2 year period. | L44: =+'SCHEDULE MJL-D11-1'!X23 -> 213
A45: =1+A44 -> 21 | C45: To annualize depreciation study expense over a 5 year period.
A47: =1+A45 -> 22 | B47: -16 | C47: To remove rental expense for the Bank of America Lease | L47: =+'SCHEDULE MJL-D11-1'!Y23 -> -110
A49: =A47+1 -> 23 | B49: -17 | C49: Remove Electric Costs Allocated to Gas | L49: ='SCHEDULE MJL-D11-1'!Z23 -> -14
A51: =A49+1 -> 24 | B51: -18 | C51: Decrease distribution expenses for changes in depreciation charged to O&M | L51: ='SCHEDULE MJL-D11-1'!AA23 -> -46
A53: =A51+1 -> 25 | B53: -19 | C53: To adjust Allocation Factors to 2021 | L53: ='SCHEDULE MJL-D11-1'!AF23 -> 40
A55: =A53+1 -> 26 | B55: -20 | C55: Normalize COLI expense to a 5 year average | L55: ='SCHEDULE MJL-D11-1'!AG23 -> -340
A57: =A55+1 -> 27 | B57: -21 | C57: Remove alcohol expenses | L57: ='SCHEDULE MJL-D11-1'!AH23 -> -1
A59: =A57+1 -> 28 | B59: -22 | C59: To remove Board of Directors luxury travel costs. | L59: ='SCHEDULE MJL-D11-1'!AI23 -> -17
A61: =A59+1 -> 29 | B61: -23 | C61: Pro Forma decrease in software rental expense. | L61: ='SCHEDULE MJL-D11-1'!AJ23 -> -20
A63: =A61+1 -> 30 | B63: -24 | C63: Remove EV Incentive costs | L63: ='SCHEDULE MJL-D11-1'!AK23 -> -1
A65: =A63+1 -> 31 | B65: -25 | C65: To include customer convenience fees | L65: ='SCHEDULE MJL-D11-1'!AL23 -> 503
A67: =A65+1 -> 32 | B67: -26 | C67: Decrease test year expenses to annualize MPSC Assessment. | L67: ='SCHEDULE MJL-D11-1'!AM23 -> -11
A70: =1+A67 -> 33 | B70: Total Pro Forma Adjustments to Gas Operating and Maintenance Expenses | L70: =SUM(L10:L69) -> -41768

Sheet SCHEDULE MJL-D12-1
A1: AMEREN MISSOURI
B2: DEPRECIATION & AMORTIZATION EXPENSE
B3: ='SCHEDULE MJL-D5'!A3 -> FOR THE TWELVE MONTHS ENDED DECEMBER 31, 2020
B4: ($000)
D6: TOTALS | F6: PRO FORMA
D7: PER | E7: PRO FORMA | F7: GAS
B8: LINE | C8: DESCRIPTION | D8: BOOKS | E8: ADJUSTMENTS(1) | F8: TOTALS
C9: (A) | D9: (B) | E9: (C) | F9: (D)
C11: DEPRECIATION EXPENSE:
B12: =1 -> 1 | C12: INTANGIBLE | D12: 917 | E12: =+'SCHEDULE MJL-D12-2'!E18+'SCHEDULE MJL-D12-2'!E27 -> 2199 | F12: =SUM(D12:E12) -> 3116
B13: =1+B12 -> 2 | C13: PRODUCTION | D13: 0 | E13: =+'SCHEDULE MJL-D12-2'!E14+'SCHEDULE MJL-D12-2'!E23 -> 0 | F13: 0
B14: =1+B13 -> 3 | C14: TRANSMISSION PLANT | D14: 107 | E14: =+'SCHEDULE MJL-D12-2'!E15+'SCHEDULE MJL-D12-2'!E24 -> -14 | F14: 93
B15: 4 | C15: DISTRIBUTION PLANT | D15: 10836 | E15: =+'SCHEDULE MJL-D12-2'!E16+'SCHEDULE MJL-D12-2'!E25 -> -878 | F15: 9958
B16: 5 | C16: GENERAL PLANT | D16: 2335 | E16: =+'SCHEDULE MJL-D12-2'!E17+'SCHEDULE MJL-D12-2'!E26+'SCHEDULE MJL-D12-2'!E31 -> -312 | F16: =SUM(D16:E16) -> 2023
B17: 6 | C17: INCENTIVE COMPENSATION | D17: 0 | E17: =+'SCHEDULE MJL-D12-2'!E33 -> -48 | F17: -48
B19: =1+B17 -> 7 | C19: TOTAL DEPRECIATION EXPENSE | D19: =SUM(D12:D18) -> 14195 | E19: =SUM(E12:E18) -> 947 | F19: =SUM(F12:F18) -> 15142
C21: MISC. AMORTIZATION:
B22: =1+B19 -> 8 | C22: AMORTIZATION OF COVID AAO | D22: 0 | E22: 18 | F22: =SUM(D22:E22) -> 18
B23: =1+B22 -> 9 | C23: AMORTIZATION OF OVER/UNDER COLLECTION | D23: -188 | E23: 0 | F23: =SUM(D23:E23) -> -188
B24: =1+B23 -> 10 | C24: AMORTIZATION OF EXCESS TRACKER | D24: 6 | E24: 42 | F24: 48
B25: =1+B24 -> 11 | C25: AMORTIZATION OF LOW INCOME | D25: 0 | E25: 700 | F25: 700
B27: =1+B25 -> 12 | C27: TOTAL MISC AMORTIZATION | D27: =SUM(D22:D26) -> -182 | E27: =SUM(E22:E26) -> 760 | F27: =SUM(F22:F26) -> 578
B29: =1+B27 -> 13 | C29: TOTAL DEPR & AMORTIZATION EXPENSE | D29: =+D19+D27 -> 14013 | E29: =+E19+E27 -> 1707 | F29: =+F19+F27 -> 15720
B31: =1+B29 -> 14 | C31: (1) See SCHEDULE MJL-D12-2 for explanation of the pro forma adjustments.

Sheet SCHEDULE MJL-D12-2
A1: AMEREN MISSOURI
A2: GAS DEPRECIATION & AMORTIZATION EXPENSE PRO FORMA ADJUSTMENTS
A3: ='SCHEDULE MJL-D5'!A3 -> FOR THE TWELVE MONTHS ENDED DECEMBER 31, 2020
A4: ($000)
E7: PRO FORMA
A8: LINE | B8: ITEM NO. | C8: DESCRIPTION | E8: ADJUSTMENTS
B9: (A) | C9: (B) | E9: (C)
A11: 1 | B11: -1 | C11: To reflect the book depreciation annualized for the plant in service depreciable balances at September 30, 2021
A12: =1+A11 -> 2
A14: =1+A12 -> 3 | C14: Change in Depr. Exp. - Production | E14: 0
A15: =1+A14 -> 4 | C15: Change in Depr. Exp. - Transmission | E15: 0
A16: =1+A15 -> 5 | C16: Change in Depr. Exp. - Distribution | E16: 802
A17: 6 | C17: Change in Depr. Exp. - General Plant | E17: 645
A18: =1+A17 -> 7 | C18: Change in Amort. Exp. - Intangible Plant | E18: 2199
A19: =1+A18 -> 8 | C19: Total Increase in Depreciation Expense | E19: =SUM(E14:E18) -> 3646
A21: =1+A19 -> 9 | B21: -2 | C21: Adjust depreciation expense to reflect the proposed rates
A23: =1+A21 -> 10 | C23: Change in Depr. Exp. - Production | E23: 0
A24: =1+A23 -> 11 | C24: Change in Depr. Exp. - Transmission | E24: -14
A25: =1+A24 -> 12 | C25: Change in Depr. Exp. - Distribution | E25: -1680
A26: 13 | C26: Change in Depr. Exp. - General Plant | E26: -201
A27: 14 | C27: Change in Amort. Exp. - Intangible Plant | E27: 0
A28: 15 | C28: Total Increase in Depreciation Expense | E28: =SUM(E23:E27) -> -1895
A30: =1+A28 -> 16 | B30: -3 | C30: To reduce depreciation expense charged to O&M
A31: =1+A30 -> 17 | C31: Decrease in Depr. Exp. - General Plant | E31: -756
A33: =1+A31 -> 18 | B33: -4 | C33: Depreciation on Incentive Compensation Capitalized | E33: -48
A35: =1+A33 -> 19 | B35: -5 | C35: Amortization of COVID AAO | E35: 18
A37: =1+A35 -> 20 | B37: -6 | C37: Amortization of Excess Tracker | E37: 42
A39: =1+A37 -> 21 | B39: -7 | C39: Amortization of Low Income | E39: 700
A41: =1+A39 -> 22 | B41: TOTAL PRO FORMA ADJUSTMENTS: DEPRECIATION & AMORTIZATION | E41: =SUM(E19,E28,E31:E39) -> 1707

Sheet SCHEDULE MJL-D14-1
B1: AMEREN MISSOURI
B2: TAXES OTHER THAN INCOME TAXES
B3: ='SCHEDULE MJL-D5'!A3 -> FOR THE TWELVE MONTHS ENDED DECEMBER 31, 2020 | C3: ="FOR THE " & 'SCHEDULE MJL-D5'!#REF! ->  | D3: ="FOR THE " & 'SCHEDULE MJL-D5'!#REF! ->  | E3: ="FOR THE " & 'SCHEDULE MJL-D5'!#REF! ->  | F3: ="FOR THE " & 'SCHEDULE MJL-D5'!#REF! ->  | G3: ="FOR THE " & 'SCHEDULE MJL-D5'!#REF! -> 
B4: ($000)
E6: TOTAL | G6: PRO FORMA
E7: PER | F7: PRO FORMA | G7: GAS
B8: LINE | C8: DESCRIPTION | E8: BOOKS | F8: ADJUSTMENTS(1) | G8: TOTALS
C9: (A) | E9: (B) | F9: (C) | G9: (D)
C11: PAYROLL TAXES
B12: 1 | C12: F.I.C.A. | D12: 165021 | E12: 1097 | F12: 13 | G12: =E12+F12 -> 1110
B13: =1+B12 -> 2 | C13: FEDERAL UNEMPLOYMENT | E13: 8 | F13: 0 | G13: =E13+F13 -> 8
B14: =1+B13 -> 3 | C14: MISSOURI UNEMPLOYMENT | E14: 0 | F14: 0 | G14: =E14+F14 -> 0
B15: =1+B14 -> 4 | C15: ST. LOUIS EMPLOYMENT TAX | E15: 0 | F15: 0 | G15: =E15+F15 -> 0
B16: =1+B15 -> 5 | C16: TOTAL PAYROLL TAXES | E16: =SUM(E12:E15) -> 1105 | F16: =SUM(F12:F15) -> 13 | G16: =SUM(G12:G15) -> 1118
C18: R.E., P.P. & CORP FRANCHISE
B19: =1+B16 -> 6 | C19: MISSOURI R.E., & P.P. | D19: 685910 | E19: 7999 | F19: 0 | G19: =SUM(E19:F19) -> 7999
B20: =1+B19 -> 7 | C20: OTHER STATES R.E. & P.P. | E20: 127 | F20: 0 | G20: 127
B21: 8 | C21: TOTAL R.E., P.P. & CORP FRANCHISE | D21: =SUM(D19:D20) -> 685910 | E21: =SUM(E19:E20) -> 8126 | F21: =SUM(F19:F20) -> 0 | G21: =SUM(G19:G20) -> 8126
B23: =1+B21 -> 9 | C23: MUNICIPAL GROSS RECEIPTS | E23: 5812 | F23: -5812 | G23: =SUM(E23:F23) -> 0
C25: MISCELLANEOUS
B26: =1+B23 -> 10 | C26: MISSOURI CORP FRANCHISE | E26: -13 | F26: 0 | G26: =E26+F26 -> -13
B27: =1+B26 -> 11 | C27: ILLINOIS CORP FRANCHISE | E27: 0 | F27: 0 | G27: =E27+F27 -> 0
B28: =1+B27 -> 12 | C28: MISCELLANEOUS | E28: 0 | F28: 0 | G28: =E28+F28 -> 0
B29: =1+B28 -> 13 | C29: TOTAL MISCELLANEOUS | E29: =SUM(E26:E28) -> -13 | F29: =SUM(F26:F28) -> 0 | G29: =SUM(G26:G28) -> -13
B32: =1+B29 -> 14 | C32: TOTAL TAXES OTHER THAN INCOME TAXES | E32: =E16+E21+E23+E29 -> 15030 | F32: =F16+F21+F23+F29 -> -5799 | G32: =G16+G21+G23+G29 -> 9231
B34: =1+B32 -> 15 | C34: (1) See SCHEDULE MJL-D14-2 for explanation of the pro forma adjustments.

Sheet SCHEDULE MJL-D14-2
A1: AMEREN MISSOURI
A2: TAXES OTHER THAN INCOME
A3: PRO FORMA ADJUSTMENTS
A4: ='SCHEDULE MJL-D5'!A3 -> FOR THE TWELVE MONTHS ENDED DECEMBER 31, 2020
A5: ($000)
K7: PRO FORMA
A8: LINE | B8: ITEM NO. | C8: DESCRIPTION | K8: AMOUNT
B9: (A) | C9: (B) | K9: (C)
A11: 1 | B11: -1 | C11: Increase the F.I.C.A. taxes to reflect the pro forma wage adjustments. | K11: 13
A13: =1+A11 -> 2 | B13: -2 | C13: Eliminate the gross receipts tax as they are a pass through tax. | K13: -5812
A15: =1+A13 -> 3 | C15: Total Pro Forma Adjustments to Taxes Other Than Income | K15: =SUM(K10:K14) -> -5799

Sheet SCHEDULE MJL-D15
A1: AMEREN MISSOURI
A2: ="TOTAL GAS INCOME TAXES AT THE PROPOSED RETURN " & 'SCHEDULE MJL-D5'!A3 -> TOTAL GAS INCOME TAXES AT THE PROPOSED RETURN FOR THE TWELVE MONTHS ENDED DECEMBER 31, 2020
A3: ($000)
E6: TOTAL
A7: LINE | C7: DESCRIPTION | E7: GAS
C8: (A) | D8: (B) | E8: (C)
A10: 1 | C10: TOTAL GAS NET INCOME FROM OPERATIONS | E10: 21555
C12: ADD
A13: =1+A10 -> 2 | C13: CURRENT INCOME TAXES | E13: 4607
A14: =1+A13 -> 3 | C14: DEFERRED INCOME TAXES
A15: =1+A14 -> 4 | C15: DEFERRED INCOME TAX EXPENSE | E15: -729
A16: =1+A15 -> 5 | C16: I.T.C. AMORTIZATION | E16: -46
A18: =1+A16 -> 6 | C18: TOTAL GAS NET INCOME BEFORE INCOME TAX | E18: =SUM(E10:E16) -> 25387
C20: ADDITIONS TO NET INCOME BEFORE INCOME TAX
A21: =1+A18 -> 7 | C21: BOOK DEPRECIATION | E21: 15723
A22: =1+A21 -> 8 | C22: BOOK DEPRECIATION CHARGED TO O&M | E22: 756
A23: 9 | C23: EQUITY ISSUANCE COSTS | E23: 0
A25: =1+A23 -> 10 | C25: TOTAL ADDITIONS | E25: =SUM(E21:E24) -> 16479
C27: SUBTRACTIONS TO NET INCOME BEFORE INCOME TAX
A28: =1+A25 -> 11 | C28: INTEREST ON DEBT (1) | E28: 5663
A29: =1+A28 -> 12 | C29: TAX STRAIGHT LINE | E29: 16525
A30: =1+A29 -> 13 | C30: PREFERRED DIVIDEND DEDUCTION | E30: 415
A32: =1+A30 -> 14 | C32: TOTAL SUBTRACTIONS | E32: =SUM(E28:E30) -> 22603
A34: =1+A32 -> 15 | C34: TOTAL GAS NET TAXABLE INCOME | E34: =E18+E25-E32 -> 19263
C36: FEDERAL INCOME TAX
A37: =1+A34 -> 16 | C37: NET TAXABLE INCOME | E37: =E34 -> 19263
A38: =1+A37 -> 17 | C38: DEDUCT MISSOURI INCOME TAX | E38: =+E50 -> 693
A39: =1+A38 -> 18 | C39: DEDUCT CITY EARNINGS TAX | E39: =+E57 -> 20
A40: =1+A39 -> 19 | C40: FEDERAL TAXABLE INCOME | E40: =E37-E38-E39 -> 18550
A42: =1+A40 -> 20 | C42: =" FEDERAL INCOME TAX" -> FEDERAL INCOME TAX | D42: 0.21 | E42: =ROUND(E40*D42,0) -> 3896
C44: STATE INCOME TAXES
A45: =1+A42 -> 21 | C45: NET TAXABLE INCOME | E45: =E34 -> 19263
A46: =1+A45 -> 22 | C46: DEDUCT 50% OF FEDERAL INCOME TAX | E46: =ROUND(E42*0.5,0) -> 1948
A47: =1+A46 -> 23 | C47: DEDUCT CITY EARNINGS TAX | E47: =+E57 -> 20
A48: =1+A47 -> 24 | C48: MISSOURI TAXABLE INCOME | E48: =E45-E46-E47 -> 17295
A50: =1+A48 -> 25 | C50: TOTAL GAS MISSOURI INCOME TAX | D50: 0.04 | E50: =ROUND(E48*D50,0)+1 -> 693
C52: CITY EARNINGS TAX
A53: =1+A50 -> 26 | C53: NET TAXABLE INCOME | E53: =+E34 -> 19263
A54: =1+A53 -> 27 | C54: LESS TAX ADJUSTMENTS TO INCOME | E54: 2833
A55: =1+A54 -> 28 | C55: CITY TAXABLE INCOME | E55: =+E53-E54 -> 16430
A57: =1+A55 -> 29 | C57: CITY EARNINGS TAX | D57: 0.00122 | E57: =ROUND(E55*D57,0) -> 20
A59: =+A57+1 -> 30 | C59: TOTAL GAS CURRENT INCOME TAXES | E59: =E42+E50+E57 -> 4609
C61: DEFERRED INCOME TAXES:
A62: =1+A59 -> 31 | C62: DEFERRED INCOME TAX EXPENSE | E62: =+E15 -> -729
A63: =1+A62 -> 32 | C63: I.T.C. AMORTIZATION | E63: =+E16 -> -46
A64: =1+A63 -> 33 | C64: TOTAL GAS DEFERRED INCOME TAX | E64: =SUM(E62:E63) -> -775
A66: =1+A64 -> 34 | C66: TOTAL GAS CURRENT & DEFERRED INCOME TAX | E66: =+E59+E64 -> 3834
A69: =1+A66 -> 35 | C69: (1) RATE BASE X EMBEDDED
A70: =1+A69 -> 36 | C70: COST OF DEBT. | D70: 0.01824

Sheet SCHEDULE MJL-D16
B1: AMEREN MISSOURI
B2: TOTAL GAS NET ORIGINAL COST RATE BASE AND REVENUE REQUIREMENT
B3: ='SCHEDULE MJL-D5'!A3 -> FOR THE TWELVE MONTHS ENDED DECEMBER 31, 2020
B4: ($000)
F6: TOTAL
F7: GAS
B8: LINE | C8: DESCRIPTION | D8: REFERENCE | F8: AMOUNT
C9: (A) | D9: (B) | F9: (C)
C11: A. TOTAL GAS NET ORIGINAL COST RATE BASE
B13: 1 | C13: ORIGINAL COST OF PLANT IN SERVICE | D13: SCHEDULE MJL-D1 | F13: =+'SCHEDULE MJL-D1-1'!G24 -> 618503
B14: =1+B13 -> 2 | C14: LESS: RESERVES FOR DEPRECIATION & AMORTIZATION | D14: SCHEDULE MJL-D2 | F14: =+'SCHEDULE MJL-D2-1'!G24 -> 228319
B15: =1+B14 -> 3 | C15: NET ORIGINAL COST OF PLANT | F15: =F13-F14 -> 390184
B16: 4 | C16: AVERAGE FUEL AND MATERIALS AND SUPPLIES | D16: SCHEDULE MJL-D3 | F16: =+'SCHEDULE MJL-D3'!F16 -> 6500
B17: 5 | C17: AVERAGE PREPAYMENTS | D17: SCHEDULE MJL-D4 | F17: =+'SCHEDULE MJL-D4'!G30 -> 756
B18: 6 | C18: CASH WORKING CAPITAL (LEAD/LAG) | D18: SCHEDULE MJL-D5 | F18: ='SCHEDULE MJL-D5'!J33 -> -1984
B19: 7 | C19: FEDERAL INCOME TAX CASH REQUIREMENT | D19: SCHEDULE MJL-D6 | F19: ='SCHEDULE MJL-D6'!J14 -> 16
B20: 8 | C20: STATE INCOME TAX CASH REQUIREMENT | D20: SCHEDULE MJL-D6 | F20: ='SCHEDULE MJL-D6'!J17 -> 3
B21: 9 | C21: CITY EARNINGS TAX CASH REQUIREMENT | D21: SCHEDULE MJL-D6 | F21: ='SCHEDULE MJL-D6'!J20 -> -13
B22: =1+B21 -> 10 | C22: INTEREST EXPENSE CASH REQUIREMENT | D22: SCHEDULE MJL-D6 | F22: ='SCHEDULE MJL-D6'!J23 -> -805
B23: =1+B22 -> 11 | C23: AVERAGE CUSTOMER ADVANCES FOR CONSTRUCTION | D23: SCHEDULE MJL-D7 | F23: ='SCHEDULE MJL-D7'!E13 -> -391
B24: 12 | C24: AVERAGE CUSTOMER DEPOSITS | D24: SCHEDULE MJL-D7 | F24: ='SCHEDULE MJL-D7'!E16 -> -885
B25: =1+B24 -> 13 | C25: PENSION TRACKER REG ASSET | D25: SCHEDULE MJL-D8 | F25: =+'SCHEDULE MJL-D8'!H15 -> -579
B26: =1+B25 -> 14 | C26: OPEB TRACKER REG LIABILITY | D26: SCHEDULE MJL-D8 | F26: =+'SCHEDULE MJL-D8'!H18 -> -958
B27: =1+B26 -> 15 | C27: ACCUMULATED DEFERRED INCOME TAXES | D27: SCHEDULE MJL-D9 | F27: =+'SCHEDULE MJL-D9'!H17 -> -81383
B29: =1+B27 -> 16 | C29: TOTAL GAS NET ORIGINAL COST RATE BASE | F29: =SUM(F15:F27) -> 310461
C31: B. TOTAL GAS REVENUE REQUIREMENT
C33: TOTAL GAS OPERATING EXPENSES:
B34: =1+B29 -> 17 | C34: PRODUCTION | D34: SCHEDULE MJL-D11-3 | F34: =+'SCHEDULE MJL-D11-1'!AO9 -> 755
B35: =1+B34 -> 18 | C35: TRANSMISSION | D35: SCHEDULE MJL-D11-3 | F35: =+'SCHEDULE MJL-D11-1'!AO11 -> 8
B36: 19 | C36: DISTRIBUTION | D36: SCHEDULE MJL-D11-3 | F36: =+'SCHEDULE MJL-D11-1'!AO13 -> 14198
B37: 20 | C37: CUSTOMER ACCOUNTS | D37: SCHEDULE MJL-D11-3 | F37: =+'SCHEDULE MJL-D11-1'!AO15 -> 6119
B38: 21 | C38: CUSTOMER SERVICE | D38: SCHEDULE MJL-D11-3 | F38: =+'SCHEDULE MJL-D11-1'!AO17 -> 804
B39: 22 | C39: SALES | D39: SCHEDULE MJL-D11-3 | F39: =+'SCHEDULE MJL-D11-1'!AO19 -> 54
B40: 23 | C40: ADMINISTRATIVE AND GENERAL | D40: SCHEDULE MJL-D11-3 | F40: =+'SCHEDULE MJL-D11-1'!AO21 -> 14190
B41: 24 | C41: TOTAL GAS OPERATING EXPENSES | F41: =SUM(F34:F40) -> 36128
B42: 25 | C42: DEPRECIATION AND AMORTIZATION | D42: SCHEDULE MJL-D12-1 | F42: =+'SCHEDULE MJL-D12-1'!F29 -> 15720
B43: 26 | C43: TAXES OTHER THAN INCOME TAXES | D43: SCHEDULE MJL-D13-1 | F43: =+'SCHEDULE MJL-D14-1'!G32 -> 9231
C44: INCOME TAXES-BASED ON PROPOSED RATE OF RETURN
B45: =1+B43 -> 27 | C45: FEDERAL | D45: SCHEDULE MJL-D14 | F45: =+'SCHEDULE MJL-D15'!E42 -> 3896
B46: =1+B45 -> 28 | C46: STATE | D46: SCHEDULE MJL-D14 | F46: =+'SCHEDULE MJL-D15'!E50 -> 693
B47: =1+B46 -> 29 | C47: CITY EARNINGS | D47: SCHEDULE MJL-D14 | F47: =+'SCHEDULE MJL-D15'!E57 -> 20
B48: =1+B47 -> 30 | C48: TOTAL INCOME TAXES | F48: =SUM(F45:F47) -> 4609
C49: DEFERRED INCOME TAXES | E49: 0
B50: =1+B48 -> 31 | C50: DEFERRED INCOME TAX EXPENSE | D50: SCHEDULE MJL-D14 | F50: =+'SCHEDULE MJL-D15'!E62 -> -729
B51: =1+B50 -> 32 | C51: I.T.C. AMORTIZATION | D51: SCHEDULE MJL-D14 | F51: =+'SCHEDULE MJL-D15'!E63 -> -46
B52: =1+B51 -> 33 | C52: TOTAL DEFERRED INCOME TAXES | F52: =SUM(F50:F51) -> -775
B54: =1+B52 -> 34 | C54: ="RETURN (RATE BASE * "&TEXT(D54,"0.000%")&")" -> RETURN (RATE BASE * 6.943%) | D54: 0.06943 | F54: =ROUND(D54*F29,0) -> 21555
B56: =1+B54 -> 35 | C56: TOTAL GAS REVENUE REQUIREMENT | F56: =+F41+F42+F43+F48+F52+F54 -> 86468

Sheet SCHEDULE MJL-D17
A1: AMEREN MISSOURI
A2: ="INCREASE REQUIRED TO PRODUCE "& TEXT('SCHEDULE MJL-D16'!D54,"0.000%") &" RETURN ON " -> INCREASE REQUIRED TO PRODUCE 6.943% RETURN ON
A3: TOTAL GAS NET ORIGINAL COST RATE BASE
A4: ='SCHEDULE MJL-D5'!A3 -> FOR THE TWELVE MONTHS ENDED DECEMBER 31, 2020
A5: ($000)
E8: TOTAL
E9: GAS
A10: LINE | C10: DESCRIPTION | E10: AMOUNT
C11: (A) | E11: (B)
A13: 1 | C13: TOTAL GAS NET ORIGINAL COST RATE BASE | E13: ='SCHEDULE MJL-D16'!F29 -> 310461
C15: TOTAL GAS REVENUE REQUIREMENT:
A16: =1+A13 -> 2 | C16: ="RETURN AT PROPOSED RATE ("&TEXT('SCHEDULE MJL-D16'!D54,"0.000%")&")" -> RETURN AT PROPOSED RATE (6.943%) | E16: ='SCHEDULE MJL-D16'!F54 -> 21555
A17: =1+A16 -> 3 | C17: OPERATING AND MAINTENANCE EXPENSES | E17: ='SCHEDULE MJL-D16'!F41 -> 36128
A18: 4 | C18: DEPRECIATION AND AMORTIZATION | E18: ='SCHEDULE MJL-D16'!F42 -> 15720
A19: 5 | C19: TAXES OTHER THAN INCOME | E19: ='SCHEDULE MJL-D16'!F43 -> 9231
A20: 6 | C20: FEDERAL AND STATE INCOME AND CITY EARNINGS TAXES AT CLAIMED RETURN | E20: ='SCHEDULE MJL-D16'!F45+'SCHEDULE MJL-D16'!F46+'SCHEDULE MJL-D16'!F47 -> 4609
A21: 7 | C21: DEFERRED INCOME TAXES | E21: ='SCHEDULE MJL-D16'!F52 -> -775
A22: 8 | C22: TOTAL GAS REVENUE REQUIREMENT | E22: =SUM(E16:E21) -> 86468
A25: =1+A22 -> 9 | C25: PRO FORMA TOTAL GAS OPERATING REVENUE AT PRESENT RATES | E25: =+'SCHEDULE MJL-D10'!F19 -> 77065
A27: =1+A25 -> 10 | C27: DEFICIENCY IN TOTAL GAS OPERATING REVENUE | E27: =E22-E25 -> 9403
F30: =+UPPER(C30) -> 

Sheet SCHEDULE MJL-D18
A1: Ameren Missouri
A2: Cash Working Capital Requirement
A3: For the Twelve Months Ended December 31, 2020
A7: Line No. | C7: Description | E7: Revenue Lag | G7: Expense Lead | I7: Net Lag | K7: CWC Factor
C8: (A) | E8: (B) | G8: (C) | I8: (D) | K8: (E)
A10: 1 | C10: Pensions & Benefits | E10: 39.50066177 | G10: -18.40927551 | I10: =E10+G10 -> 21.09138627 | K10: =I10/365 -> 0.05778461991
A11: =A10+1 -> 2 | C11: Payroll and Withholdings | E11: 39.50066177 | G11: -10.15033204 | I11: 29.35032974 | K11: 0.08041186229
A12: 3 | C12: Payroll Taxes | E12: 39.50066177 | G12: -9.378521517 | I12: 30.12214026 | K12: 0.08252641166
A13: 4 | C13: Other Operations and Maintenance Expenses | E13: 39.50066177 | G13: -43.84767296 | I13: -4.34701119 | K13: -0.0119096197
A14: 5 | C14: Property/Real Estate Taxes | E14: 39.50066177 | G14: -183 | I14: -143.4993382 | K14: -0.3931488719
A15: 6 | C15: Sales Tax | E15: 39.50066177 | G15: -9.312952733 | I15: 30.18770904 | K15: 0.08270605217
A16: 7 | C16: Gross Receipts Taxes | E16: 24.29232844 | G16: -26.13670422 | I16: -1.84437578 | K16: -0.005053084329
A17: 8 | C17: Federal Income Tax | E17: 39.50066177 | G17: -38 | I17: 1.500661774 | K17: 0.004111402122
A18: 9 | C18: State Income Tax | E18: 39.50066177 | G18: -38 | I18: 1.500661774 | K18: 0.004111402122
A19: 10 | C19: St Louis Corporate Earnings Tax | E19: 39.50066177 | G19: -274.5 | I19: -234.9993382 | K19: -0.6438338034
A20: 11 | C20: PGA Expense | E20: 39.50066177 | G20: -35.01762792 | I20: 4.483033852 | K20: 0.01228228452
A21: 12 | C21: Interest Expense | E21: 39.50066177 | G21: -91.36877139 | I21: -51.86810962 | K21: -0.1421044099
A22: 13 | C22: Incentive Compensation | E22: 39.50066177 | G22: -250.2920663 | I22: -210.7914045 | K22: -0.5775106973
A23: 14 | C23: Self Procured Insurance Tax | E23: 39.50066177 | G23: -241.5 | I23: -201.9993382 | K23: -0.5534228445
